Cogmind - Beta 16.1 @@@ ROGUE MODE // 2026.03.22 @ 03:25:29 Player: CONM Result: Destroyed by H-66 Slayer with Gauss Rifle Performance ------------- Evolutions (5) 2500 Regions Visited (13) 2600 Robots Destroyed (55) 275 Value Destroyed (1908) 1908 Prototype IDs (14) 280 Alien Tech Used (0) 0 Bonus (320) 320 TOTAL SCORE: 7883 Bonus ------- Follower Combat Kills 20 Met Data Miner 300 Cogmind --------- Core Integrity 0/1000 Matter 292/300 Energy 99/100 System Corruption 5% Temperature Cool (0) Movement Core (50) Location -5/Upper Caves Parts ------- > --- POWER (1) -------- (None) > --- PROPULSION (5) --- (None) > --- UTILITY (9) ------ (None) > --- WEAPON (2) ------- (None) > --- INVENTORY (5) ---- Medium Storage Unit Advanced Recoil Stabilizer Energy Filter Hardlight Generator Peak State ------------ > --- POWER ------------ Improved Deuterium Engine > --- PROPULSION ------- Gravmag System Improved Airjet Improved Gravmag System Improved Gravmag System Improved Gravmag System > --- UTILITY ---------- Advanced Heat Sink Medium Storage Unit Improved Sensor Array Improved Signal Interpreter Improved Reaction Control System Improved Utility Shielding Improved Medium Armor Plating > --- WEAPON ----------- Thermic Laser Variable Charge Gun > --- INVENTORY -------- Improved Gravmag System Advanced Weight Redist. System Energy Filter Drone Bay Heart of Steel Improved Arc Projector Long-range Proton Cannon [Rating: 68] Favorites ----------- Power Improved Deuterium Engine Engine Improved Deuterium Engine Power Core Neutrino Core Reactor Reinforced Antimatter Reactor Propulsion Flexi-carbon Leg Treads Light Treads Leg Flexi-carbon Leg Hover Unit Gravmag System Flight Unit Flight Unit Utility Medium Storage Unit Device Improved Sensor Array Storage Medium Storage Unit Processor Improved Melee Analysis Suite Hackware Hacking Suite Protection Improved Utility Shielding Weapon Coil Gun Energy Gun EM Pulse Gun Energy Cannon Subdweller Beam Cannon Ballistic Gun Coil Gun Ballistic Cannon Advanced Assault Cannon Launcher Heavy Missile Launcher Special Weapon Remote Datajack Impact Weapon Powered Hammer Piercing Weapon Makeshift Spear Build | -11 -10 -10 -10 -8 -7 -6 -6 -6 -6 -5 -5 -5 -5 ------- Run | Yrd Mat Min Sub Mat Fac Fac Low Low Dat Pro Fac Upp Upp Slots Evolved 10 | . . . . 4 2 2 . . . . 2 . . Power . | . . . . . . . . . . . . . . Propulsion 3 | . . . . 2 . 1 . . . . . . . Utility 7 | . . . . 2 2 1 . . . . 2 . . Weapon . | . . . . . . . . . . . . . . Parts Attached 85 | 8 . 2 7 15 11 14 3 4 1 1 12 3 4 Power 8 | 1 . . 1 1 1 2 . 1 . . . . 1 Engine 5 | 1 . . 1 1 1 1 . . . . . . . Core 2 | . . . . . . . . 1 . . . . 1 Reactor 1 | . . . . . . 1 . . . . . . . Propulsion 26 | 2 . . 3 8 1 5 . 1 . 1 5 . . Treads 3 | 2 . . 1 . . . . . . . . . . Leg 11 | . . . 1 4 1 . . . . . 5 . . Wheel . | . . . . . . . . . . . . . . Hover 10 | . . . . 4 . 5 . 1 . . . . . Flight 2 | . . . 1 . . . . . . 1 . . . Utility 29 | 2 . . . 4 5 6 3 . 1 . 4 2 2 Device 12 | 1 . . . 1 3 4 1 . 1 . . . 1 Storage 4 | 1 . . . 1 . 1 . . . . 1 . . Processor 4 | . . . . . . 1 . . . . 1 1 1 Hackware 1 | . . . . . . . . . . . . 1 . Protection 8 | . . . . 2 2 . 2 . . . 2 . . Artifact . | . . . . . . . . . . . . . . Weapon 22 | 3 . 2 3 2 4 1 . 2 . . 3 1 1 Energy Gun 7 | 2 . . 1 . 1 1 . 1 . . . 1 . Energy Cannon 1 | . . . 1 . . . . . . . . . . Ballistic Gun 5 | 1 . 1 . . 1 . . . . . 2 . . Ballistic Cannon 1 | . . . . . 1 . . . . . . . . Launcher 4 | . . 1 1 1 1 . . . . . . . . Special Weapon 2 | . . . . 1 . . . . . . . . 1 Impact Weapon 1 | . . . . . . . . . . . 1 . . Slashing Weapon . | . . . . . . . . . . . . . . Piercing Weapon 1 | . . . . . . . . 1 . . . . . Special Melee Weapon . | . . . . . . . . . . . . . . Unidentified Prototypes 3 | . . . . . 1 1 . . 1 . . . . Parts Lost 45 | . . 2 11 2 1 4 1 8 . 6 5 3 2 Power 5 | . . . 2 . . 1 . 1 . 1 . . . Propulsion 17 | . . . 3 1 . 3 . 3 . 4 . 3 . Utility 10 | . . . . 1 1 . . 3 . 1 3 . 1 Weapon 13 | . . 2 6 . . . 1 1 . . 2 . 1 Highest Loss Streak 6 | . . 2 4 1 1 3 1 6 . 4 4 2 2 To Critical Strikes . | . . . . . . . . . . . . . . Average Backups 7 | . 1 5 4 4 16 11 9 7 7 6 4 5 4 Power . | . . . . . 1 . . . . . . . . Propulsion 1 | . . 2 2 1 6 2 1 . . . . . . Utility 3 | . . . . 2 4 3 4 3 5 4 3 4 4 Weapon 1 | . 1 2 . . 2 3 3 2 2 1 1 . . Tool/Special . | . . . . . . . . . . . . . . Unused Backups 18 | . . . . 2 1 6 4 . . 1 1 . 3 Power . | . . . . . . . . . . . . . . Propulsion 4 | . . . . . . 3 . . . . 1 . . Utility 7 | . . . . . . 2 2 . . . . . 3 Weapon 5 | . . . . . 1 1 2 . . 1 . . . Tool/Special 2 | . . . . 2 . . . . . . . . . Average Slot Usage (%) 68 | . 100 99 77 59 94 94 100 89 61 48 48 28 28 Engine 4 | . 14 14 7 2 7 5 6 4 . . . . . Treads 4 | . 28 28 15 . . . . . . . . . . Leg 10 | . . . 5 3 30 3 . . . . 24 12 . Hover 7 | . . . . 30 . 25 33 28 20 11 . . . Device 10 | . 14 14 13 8 16 24 20 22 14 16 . . 4 Storage 6 | . 14 14 13 2 7 6 6 6 6 4 . 4 . Processor 3 | . . . . . . . 6 6 6 4 4 5 11 Protection 5 | . . . . 6 16 13 13 9 . . 8 . . Energy Gun 3 | . 19 11 5 . . 8 6 7 . . . . . Ballistic Gun 2 | . 8 10 4 . 2 . . . . . 6 . . Launcher 2 | . . 6 5 1 4 3 6 . . . . . . Peak Build Rating 68 | 9 9 10 11 33 48 63 66 68 63 63 48 31 31 Average Rating 31 | 6 9 9 8 24 41 55 64 60 45 47 39 20 22 On Entrance 26 | . 9 9 9 1 30 45 63 62 41 63 2 31 12 Avg Prop Armor Cover (%) 20 | . . . . 17 . . . . . . 15 27 . Naked Turns 86 | . . . . . . . . . . 19 22 . 45 Heaviest Build 71 | 15 15 17 21 67 71 69 48 42 33 33 32 15 17 Greatest Support 100 | 40 40 40 40 68 71 88 48 48 39 39 100 20 3 Greatest Overweight (x) 5 | . . . 2 3 . 1 . 1 . 1 1 4 5 Average Overweight (x) . | . . . . . . . . . . . . . 2 Largest Inventory Capacity 20 | 8 8 8 8 20 20 20 10 10 10 10 10 10 5 Average Capacity 9 | 7 8 8 7 8 20 11 10 10 10 9 5 9 5 Most Carried 20 | 1 2 7 6 7 20 19 10 10 10 7 6 6 5 Average Carried 7 | . 1 5 4 4 16 10 9 9 9 6 4 5 4 Final Capacity 20 | 8 8 8 5 20 20 10 10 10 10 5 10 5 5 Final Carried 20 | 1 2 5 2 7 20 10 10 10 7 5 6 5 4 Class Distribution -------------------- 93% | Mutant 3% | Scavenger-Mutant Dominant Class ---------------- Mutant | -10/Materials Mutant | -10/Mines Mutant | -10/Subcaves Mutant | -8/Materials Mutant | -7/Factory Mutant | -6/Factory Mutant | -6/Lower Caves Mutant | -6/Lower Caves Mutant | -6/Data Miner Mutant | -5/Proximity Caves Mutant | -5/Factory Mutant | -5/Upper Caves Mutant | -5/Upper Caves Resources | -11 -10 -10 -10 -8 -7 -6 -6 -6 -6 -5 -5 -5 -5 ----------- Run | Yrd Mat Min Sub Mat Fac Fac Low Low Dat Pro Fac Upp Upp Matter Collected 1859 | 162 . 272 162 180 138 412 73 64 . 75 198 73 50 Remotely . | . . . . . . . . . . . . . . Salvage Created 1822 | 34 169 268 151 47 184 575 . 127 . 23 198 46 . Parts 92 | 4 8 20 8 2 19 21 . 3 . 2 5 . . Haulers Intercepted 1 | . . . . . . 1 . . . . . . . Recyclers Shooed . | . . . . . . . . . . . . . . Parts Field Recycled . | . . . . . . . . . . . . . . Retrieved Matter . | . . . . . . . . . . . . . . Parts Self-Destructed 19 | . . . 9 . . . . 3 . 4 . 3 . Prevented 1 | . . . . . . . . 1 . . . . . Parts Restored . | . . . . . . . . . . . . . . Kills | -11 -10 -10 -10 -8 -7 -6 -6 -6 -6 -5 -5 -5 -5 ------- Run | Yrd Mat Min Sub Mat Fac Fac Low Low Dat Pro Fac Upp Upp Combat Hostiles Destroyed 48 | . 2 13 5 3 10 9 . 2 . 1 3 . . Melee 1 | . . . . . . . . . . 1 . . . Guns 16 | . 2 4 3 . 1 1 . 2 . . 3 . . Cannons 2 | . . . . . 2 . . . . . . . . AOE 28 | . . 9 2 3 7 7 . . . . . . . Classes Destroyed 13 | 1 2 1 1 1 2 3 . . . . 1 1 . Worker 1 | . . . . . . 1 . . . . . . . Tunneler 3 | 2 . . . . . 1 . . . . . . . Hauler 1 | . . . . . . 1 . . . . . . . Recycler 2 | . 1 . . . . 1 . . . . . . . Swarmer 20 | . . 9 . . 6 4 . . . 1 . . . Grunt 14 | . 2 4 . 2 . 2 . 2 . . 2 . . Brawler 1 | . . . . . . . . . . . 1 . . Duelist 1 | . . . . 1 . . . . . . . . . Sentry 3 | . . . . . 2 1 . . . . . . . Hunter 2 | . . . . . . 2 . . . . . . . Programmer 2 | . . . . . 2 . . . . . . . . Subdweller 5 | . . . 5 . . . . . . . . . . Samaritan 1 | . . . . . . . . . . . . 1 . Best Kill Streak 6 | 1 3 6 2 3 6 6 . 2 . 1 3 . . Combat Bots Only 6 | . 2 6 2 3 6 5 . 2 . 1 3 . . Max Kills in Single Turn 5 | 1 1 3 2 2 2 5 . 1 . 1 1 1 . Gunslinging . | . . . . . . . . . . . . . . Exploded 4 | . . 3 2 2 2 4 . . . . . . . Melee 1 | . . . . . . . . . . 1 . . . Uniques/NPCs Destroyed . | . . . . . . . . . . . . . . Combat | -11 -10 -10 -10 -8 -7 -6 -6 -6 -6 -5 -5 -5 -5 -------- Run | Yrd Mat Min Sub Mat Fac Fac Low Low Dat Pro Fac Upp Upp Hostile Shots Fired 732 | . 14 18 79 35 47 96 27 60 . 154 98 55 49 Missed 281 | . 5 10 22 9 13 48 19 22 . 57 37 22 17 Hits 451 | . 9 8 57 26 34 48 8 38 . 97 61 33 32 Melee 19 | . . . . 4 . . . . . 1 9 5 . Projectile 432 | . 9 8 57 22 34 48 8 38 . 96 52 28 32 AOE 5 | . . . 5 . . . . . . . . . . Critical Strikes 20 | . . . 2 1 1 . . 2 . 2 3 8 1 Actively Blocked 1 | . . . . . 1 . . . . . . . . Damage Taken 8056 | . 122 212 1054 583 415 604 63 730 . 1685 1259 854 475 Core 2075 | . 10 9 222 53 45 43 10 122 . 557 186 488 330 Absorbed by Shields . | . . . . . . . . . . . . . . Redirected to Shielding 217 | . . . . . 113 51 6 47 . . . . . Ignored by Resistances 44 | . . . . 44 . . . . . . . . . Core Remaining (%) 59 | 100 . . 3 90 93 . . . . 13 . . . Volleys Fired 136 | 7 7 20 28 12 16 25 . 7 . . 11 2 1 Largest 2 | 1 2 2 2 1 2 2 . 2 . . 2 1 1 Hottest 160 | 20 80 40 145 36 68 145 . 160 . . 60 65 20 Shots Fired 192 | 7 14 28 32 12 23 37 . 14 . . 22 2 1 Gun 146 | 7 14 21 23 . 11 32 . 14 . . 22 2 . Cannon 13 | . . . 6 . 7 . . . . . . . . Launcher 27 | . . 7 3 7 5 5 . . . . . . . Special 6 | . . . . 5 . . . . . . . . 1 Kinetic 77 | 7 . 18 16 . 14 . . . . . 22 . . Thermal 67 | . . . 16 . 4 32 . 14 . . . . 1 Explosive 24 | . . 7 . 7 5 5 . . . . . . . Electromagnetic 19 | . 14 3 . . . . . . . . . 2 . Robot Hit Streak 23 | 3 3 6 11 3 17 23 . 8 . . 11 5 . Robot Miss Streak 12 | 1 1 3 8 12 7 1 . 1 . . 1 . 1 Penetration Max . | . . . . . . . . . . . . . . Secondary Targets 2 | . . . . . . 1 . 1 . . . . . Max Gunslinging Chain 1 | . . . . . . 1 . 1 . . . . . Shots Hit Robots 137 | 5 10 17 19 5 15 31 . 13 . . 18 4 . Core Hits 101 | 2 5 15 9 7 23 22 . 8 . 2 7 1 . Critical Kills 2 | . . 1 . . . . . . . . 1 . . Critical Parts Destroyed . | . . . . . . . . . . . . . . Critical Strikes 5 | . . 1 . . 1 1 . 1 . . 1 . . Burn 2 | . . . . . . 1 . 1 . . . . . Destroy 2 | . . 1 . . . . . . . . 1 . . Blast 1 | . . . . . 1 . . . . . . . . Melee Attacks 10 | . . . . . . . . . . . 8 2 . Impact 10 | . . . . . . . . . . . 8 2 . Slashing . | . . . . . . . . . . . . . . Piercing . | . . . . . . . . . . . . . . Sneak Attacks 1 | . . . . . . . . . . . . 1 . Combat Hostiles . | . . . . . . . . . . . . . . Follow-up Attacks . | . . . . . . . . . . . . . . Damage Inflicted 5051 | 58 189 651 472 460 1000 1374 . 269 . 26 392 160 . Guns 2063 | 58 137 219 232 . 179 551 . 269 . . 392 26 . Cannons 174 | . . . . . 174 . . . . . . . . Explosions 2654 | . 52 432 240 460 647 823 . . . . . . . Melee 134 | . . . . . . . . . . . . 134 . Ramming 26 | . . . . . . . . . . 26 . . . Kinetic 1308 | 58 . 176 349 . 333 . . . . . 392 . . Thermal 1244 | . 52 51 123 53 145 551 . 269 . . . . . Explosive 2133 | . . 381 . 407 522 823 . . . . . . . Electromagnetic 206 | . 137 43 . . . . . . . . . 26 . Impact 134 | . . . . . . . . . . . . 134 . Slashing . | . . . . . . . . . . . . . . Piercing . | . . . . . . . . . . . . . . Highest Corruption 5 | . . . . . 2 . . . . . 5 5 5 Average Corruption 4 | . . . . . 1 . . . . . 5 5 5 Corruption Purged . | . . . . . . . . . . . . . . Corruption Blocked . | . . . . . . . . . . . . . . Effects 27 | . . . . . . . . . . . . 16 11 Message Errors 4 | . . . . . . . . . . . . 2 2 Matter Fused 9 | . . . . . . . . . . . . 5 4 Heat Flow Errors 5 | . . . . . . . . . . . . 4 1 Energy Discharges 5 | . . . . . . . . . . . . 3 2 Parts Rejected 1 | . . . . . . . . . . . . 1 . Data Loss (minor) 2 | . . . . . . . . . . . . 1 1 Data Loss (major) 1 | . . . . . . . . . . . . . 1 Overload Shots 3 | . . . . . . 3 . . . . . . . Overflow Damage 139 | . . 39 5 . . . . . . . . 95 . Projectiles . | . . . . . . . . . . . . . . Explosions 44 | . . 39 5 . . . . . . . . . . Melee 95 | . . . . . . . . . . . . 95 . Knockbacks 1 | . . . . . 1 . . . . . . . . Impact . | . . . . . . . . . . . . . . Kinetic 1 | . . . . . 1 . . . . . . . . Secondary . | . . . . . . . . . . . . . . Self-Inflicted Damage 409 | . 10 119 72 150 7 38 . . . 13 . . . Shots 14 | . 1 3 3 4 1 2 . . . . . . . Rammed 2 | . . . . . . . . . . 2 . . . Targets Rammed 3 | . . . . . . . . . . 2 1 . . Kicked 1 | . . . . . . . . . . . 1 . . Crushed . | . . . . . . . . . . . . . . Highest Temperature 315 | . 128 21 9 14 24 157 . 315 . 10 14 169 147 Average Temperature 72 | . 61 12 5 5 13 66 . 159 . 6 8 84 83 Received Heat Transfer 1405 | . 63 27 78 216 60 132 24 190 . 273 153 189 . Siege Activations . | . . . . . . . . . . . . . . Martial Activations . | . . . . . . . . . . . . . . Shielding Activations . | . . . . . . . . . . . . . . Robots Disrupted 1 | . . . . . . . . . . . . 1 . Combat Hostiles 1 | . . . . . . . . . . . . 1 . Robots Corrupted 1 | . . . . . . . . . . . . 1 . Combat Hostiles . | . . . . . . . . . . . . . . Parts Fried . | . . . . . . . . . . . . . . Impact Corruptions 5 | . . . . . . . . . . . . 5 . Robots Melted 1 | . . . . . . 1 . . . . . . . Combat Hostiles 1 | . . . . . . 1 . . . . . . . Parts Melted 6 | . . . 1 . . 3 . 2 . . . . . Heat Transferred 2675 | . 150 50 296 50 87 1370 . 672 . . . . . Parts Sabotaged . | . . . . . . . . . . . . . . Parts Stolen . | . . . . . . . . . . . . . . Parts Stripped . | . . . . . . . . . . . . . . Power Chain Reactions 3 | . 1 1 . 1 . . . . . . . . . Alert | -11 -10 -10 -10 -8 -7 -6 -6 -6 -6 -5 -5 -5 -5 ------- Run | Yrd Mat Min Sub Mat Fac Fac Low Low Dat Pro Fac Upp Upp Maximum Alert Level 2 | . . 1 . 1 2 1 . . . . 1 . . Low Security (%) 78 | 100 100 59 . 97 90 95 . . . . 52 . . Level 1 20 | . . 40 . 2 6 4 . . . . 47 . . Level 2 . | . . . . . 2 . . . . . . . . Level 3 . | . . . . . . . . . . . . . . Level 4 . | . . . . . . . . . . . . . . Level 5 . | . . . . . . . . . . . . . . High Security . | . . . . . . . . . . . . . . Max Security . | . . . . . . . . . . . . . . Peak Influence 413 | 5 49 277 . 302 413 220 . . . . 391 . . Initial 391 | . . 7 . 15 128 186 . . . . 391 . . Average 116 | . 11 107 . 56 74 132 . . . . 228 . . Influence Increases 2636 | 10 66 403 30 400 505 312 . 85 . 255 555 15 . Destroy 0b10 Robot/C 880 | . 40 260 . 60 200 180 . 40 . 40 60 . . Destroy 0b10 Robot/NC 35 | 10 5 . . . . 20 . . . . . . . Destroy Leader 182 | . 10 50 . 10 60 42 . . . . 10 . . Allied During Kill 11 | . . 6 . . . . . . . 5 . . . Successful Hack 77 | . 7 . . 12 26 . . . . . 32 . . Disable Machine 165 | . . 15 . 30 105 15 . . . . . . . Destroy Structure 236 | . 4 72 . 33 54 55 . . . . 18 . . Advance Influence 300 | . . . . . . . . . . . 300 . . Partial Spotted 15 | . . . . 15 . . . . . . . . . Lose Combat Pursuer 735 | . . . 30 240 60 . . 45 . 210 135 15 . Influence Decreases 2636 | 10 47 211 211 146 408 481 212 85 . 110 584 131 . Entered New Map 666 | . . 12 111 15 156 195 79 . . . 54 44 . Time Decay 1520 | 10 47 139 40 111 242 246 133 35 . 50 380 87 . Search Patrol Dispatched 100 | . . . . . . . . . . . 100 . . Lost Part 260 | . . 20 30 20 10 40 . 50 . 40 50 . . Lost Ally 90 | . . 40 30 . . . . . . 20 . . . Squads Dispatched 8 | . . . . . 3 3 . . . 1 1 . . Investigation . | . . . . . . . . . . . . . . Extermination 4 | . . . . . 2 1 . . . . 1 . . Reinforcement 2 | . . . . . 1 1 . . . . . . . Assault 1 | . . . . . . . . . . 1 . . . Garrison 1 | . . . . . . 1 . . . . . . . Intercept . | . . . . . . . . . . . . . . Searches Triggered 1 | . . . . . . . . . . . 1 . . Construction Impeded 1 | . . . . . . 1 . . . . . . . Haulers Reinforced . | . . . . . . . . . . . . . . Active Scanning Responses . | . . . . . . . . . . . . . . Cargo Convoy Interrupts . | . . . . . . . . . . . . . . Stealth | -11 -10 -10 -10 -8 -7 -6 -6 -6 -6 -5 -5 -5 -5 --------- Run | Yrd Mat Min Sub Mat Fac Fac Low Low Dat Pro Fac Upp Upp Distress Signals 1 | . . . . . 1 . . . . . . . . Communications Jammed . | . . . . . . . . . . . . . . Distress Signals . | . . . . . . . . . . . . . . Times Spotted 152 | . 4 13 9 22 16 12 1 11 . 39 19 4 2 Peak Tracking Total 18 | . 2 3 3 6 6 6 1 8 . 18 7 3 2 Tactical Retreats 22 | . . . 1 6 2 . . 3 . 3 6 1 . Traps | -11 -10 -10 -10 -8 -7 -6 -6 -6 -6 -5 -5 -5 -5 ------- Run | Yrd Mat Min Sub Mat Fac Fac Low Low Dat Pro Fac Upp Upp Traps Triggered 1 | . . . . . . . . . . . 1 . . Indirectly . | . . . . . . . . . . . . . . Trap Hack Attempts . | . . . . . . . . . . . . . . Triggered . | . . . . . . . . . . . . . . Disarmed . | . . . . . . . . . . . . . . Reprogrammed . | . . . . . . . . . . . . . . Reused . | . . . . . . . . . . . . . . Traps Extracted . | . . . . . . . . . . . . . . Installed . | . . . . . . . . . . . . . . Triggered . | . . . . . . . . . . . . . . Machines | -11 -10 -10 -10 -8 -7 -6 -6 -6 -6 -5 -5 -5 -5 ---------- Run | Yrd Mat Min Sub Mat Fac Fac Low Low Dat Pro Fac Upp Upp Machines Disabled 11 | . . 1 . 2 7 1 . . . . . . . Max in Single Turn 5 | . . 1 . 1 5 1 . . . . . . . Machines Repaired . | . . . . . . . . . . . . . . Machines Dismantled . | . . . . . . . . . . . . . . Machines Sabotaged . | . . . . . . . . . . . . . . Overloaded Fab Kills . | . . . . . . . . . . . . . . Hacking | -11 -10 -10 -10 -8 -7 -6 -6 -6 -6 -5 -5 -5 -5 --------- Run | Yrd Mat Min Sub Mat Fac Fac Low Low Dat Pro Fac Upp Upp Machines Accessed 19 | . 3 . . 3 3 . 2 1 4 . 3 . . Terminals 10 | . 3 . . 2 3 . . . . . 2 . . Fabricators . | . . . . . . . . . . . . . . Repair Stations . | . . . . . . . . . . . . . . Recycling Units . | . . . . . . . . . . . . . . Scanalyzers 2 | . . . . 1 . . . . . . 1 . . Garrison Access . | . . . . . . . . . . . . . . Total Hacks 58 | . 7 . . 7 6 . 2 1 30 . 5 . . Successful 43 | . 2 . . 3 2 . 2 1 30 . 3 . . Failed 14 | . 5 . . 3 4 . . . . . 2 . . Catastrophic 2 | . 1 . . . 1 . . . . . . . . Database Lockouts 1 | . . . . 1 . . . . . . . . . Manual 14 | . 5 . . 5 2 . . . . . 2 . . Terminals 21 | . 7 . . 5 6 . . . . . 3 . . Fabricators . | . . . . . . . . . . . . . . Repair Stations . | . . . . . . . . . . . . . . Recycling Units . | . . . . . . . . . . . . . . Scanalyzers 4 | . . . . 2 . . . . . . 2 . . Garrison Access . | . . . . . . . . . . . . . . Terminal Hacks 35 | . 1 . . . . . 2 1 30 . 1 . . Record 12 | . . . . . . . . . 11 . 1 . . Part Schematic 12 | . . . . . . . . . 12 . . . . Robot Schematic 4 | . . . . . . . . . 4 . . . . Prototype ID Bank 3 | . . . . . . . . . 3 . . . . Open Door 3 | . . . . . . . 2 1 . . . . . Level Access Points 1 | . 1 . . . . . . . . . . . . Fabricator Hacks . | . . . . . . . . . . . . . . Repair Station Hacks . | . . . . . . . . . . . . . . Recycling Unit Hacks . | . . . . . . . . . . . . . . Scanalyzer 3 | . . . . 1 . . . . . . 2 . . Retrieve Study 3 | . . . . 1 . . . . . . 2 . . Garrison Access Hacks . | . . . . . . . . . . . . . . Unauthorized Hacks 5 | . 1 . . 2 2 . . . . . . . . Terminals 5 | . 1 . . 2 2 . . . . . . . . Assimilate 1 | . 1 . . . . . . . . . . . . Botnet 4 | . . . . 2 2 . . . . . . . . Fabricators . | . . . . . . . . . . . . . . Repair Stations . | . . . . . . . . . . . . . . Recycling Units . | . . . . . . . . . . . . . . Scanalyzers . | . . . . . . . . . . . . . . Garrison Access . | . . . . . . . . . . . . . . Data Cores Recovered . | . . . . . . . . . . . . . . Used . | . . . . . . . . . . . . . . Hacking Detections 11 | . 3 . . 2 3 . . . . . 3 . . Full Trace Events . | . . . . . . . . . . . . . . Feedback Events . | . . . . . . . . . . . . . . Feedback Blocked . | . . . . . . . . . . . . . . Robot Schematics Acquired 4 | . . . . . . . . . 4 . . . . Robots Built . | . . . . . . . . . . . . . . Authchips . | . . . . . . . . . . . . . . Time . | . . . . . . . . . . . . . . Total Robot Build Rating . | . . . . . . . . . . . . . . Part Schematics Acquired 12 | . . . . . . . . . 12 . . . . Parts Built . | . . . . . . . . . . . . . . Authchips . | . . . . . . . . . . . . . . Time . | . . . . . . . . . . . . . . Total Part Build Rating . | . . . . . . . . . . . . . . Part Studies Acquired 2 | . . . . . . . . . . . 2 . . Parts Repaired . | . . . . . . . . . . . . . . Time . | . . . . . . . . . . . . . . Parts Recycled . | . . . . . . . . . . . . . . Recycled Matter . | . . . . . . . . . . . . . . Retrieved Matter . | . . . . . . . . . . . . . . Retrieved Components . | . . . . . . . . . . . . . . Parts Scanalyzed . | . . . . . . . . . . . . . . Part Schematics Acquired . | . . . . . . . . . . . . . . Parts Damaged . | . . . . . . . . . . . . . . Bothacking | -11 -10 -10 -10 -8 -7 -6 -6 -6 -6 -5 -5 -5 -5 ------------ Run | Yrd Mat Min Sub Mat Fac Fac Low Low Dat Pro Fac Upp Upp Used RIF Installer . | . . . . . . . . . . . . . . Robots Hacked 1 | . . . . 1 . . . . . . . . . Non-combat 1 | . . . . 1 . . . . . . . . . Combat . | . . . . . . . . . . . . . . Robot Hacks Applied 1 | . . . . 1 . . . . . . . . . parse_system 1 | . . . . 1 . . . . . . . . . Relay Couplers Released . | . . . . . . . . . . . . . . Fabnet Peak Effective % . | . . . . . . . . . . . . . . Robots Rewired . | . . . . . . . . . . . . . . Allies Hacked . | . . . . . . . . . . . . . . Hacks Repelled . | . . . . . . . . . . . . . . Allies | -11 -10 -10 -10 -8 -7 -6 -6 -6 -6 -5 -5 -5 -5 -------- Run | Yrd Mat Min Sub Mat Fac Fac Low Low Dat Pro Fac Upp Upp Total Allies 5 | . 1 3 . . . . . . . 1 . . . Largest Group 4 | . 1 4 2 . . . . . . 1 . . . Highest-Rated Group 96 | . 10 50 26 . . . . . . 96 . . . Highest-Rated Ally 96 | . 10 16 16 . . . . . . 96 . . . Total Orders 2 | . . . . . . . 2 . . . . . . EXPLORE 1 | . . . . . . . 1 . . . . . . RETURN 1 | . . . . . . . 1 . . . . . . Ally Attacks 20 | . . 14 2 . . . . . . 4 . . . Total Damage 282 | . . 157 33 . . . . . . 92 . . . Kills 1 | . . . . . . . . . . 1 . . . Allies Corrupted . | . . . . . . . . . . . . . . Allies Melted . | . . . . . . . . . . . . . . Intel | -11 -10 -10 -10 -8 -7 -6 -6 -6 -6 -5 -5 -5 -5 ------- Run | Yrd Mat Min Sub Mat Fac Fac Low Low Dat Pro Fac Upp Upp Active Infowar (turns) 3402 | 44 185 573 607 . 506 469 330 257 . . . . 431 Sensors 1562 | . . . . . 506 469 330 257 . . . . . Terrain 1409 | 44 185 573 607 . . . . . . . . . . Cloaking 431 | . . . . . . . . . . . . . 431 Robot Analysis Total . | . . . . . . . . . . . . . . Derelict Logs Recovered 6 | . . 1 . . . . . 2 . 1 . 2 . Drone Launches 2 | . . . . . . . 2 . . . . . . Drone Recoveries 2 | . . . . . . . 2 . . . . . . Exploration | -11 -10 -10 -10 -8 -7 -6 -6 -6 -6 -5 -5 -5 -5 ------------- Run | Yrd Mat Min Sub Mat Fac Fac Low Low Dat Pro Fac Upp Upp Turns Passed 6618 | 215 185 573 638 420 818 533 330 351 45 217 897 904 492 Spaces Moved 5846 | 122 101 307 389 524 547 632 697 411 84 355 666 783 228 Core 863 | 6 . . 5 1 . . . . . 72 218 333 228 Treads 719 | 116 101 307 195 . . . . . . . . . . Legs 1609 | . . . 114 15 547 35 . . . . 448 450 . Wheels . | . . . . . . . . . . . . . . Hover 2516 | . . . . 504 . 597 697 411 84 223 . . . Flight 139 | . . . 75 4 . . . . . 60 . . . Fastest Speed 35 | 50 160 160 40 40 130 42 42 42 52 35 50 50 50 Average Speed 94 | 154 160 160 145 66 130 48 42 47 52 56 106 113 192 Slowest Speed 340 | 160 160 160 190 340 130 132 42 101 52 110 190 250 300 Overloaded Moves . | . . . . . . . . . . . . . . Propulsion Burnouts . | . . . . . . . . . . . . . . Robots Hopped . | . . . . . . . . . . . . . . Potential Cave-ins . | . . . . . . . . . . . . . . Cave-ins Triggered . | . . . . . . . . . . . . . . Exploration Rate (%) 40 | 4 21 72 29 36 20 17 60 62 70 53 10 78 33 Regions Visited 13 Branch Regions 8 Pre-discovered Areas 6 | . . 1 1 . . . . 1 1 . . 2 . Known Exits Taken 7 | . . . . 1 . 1 1 1 1 1 1 . . Unknown Exits Taken 6 | 1 1 1 1 . 1 . . . . . . 1 . Scrap Searched 11 | . . 2 . . . . 3 3 . . . 1 2 Spaces Dug 8 | . . . . . . . . . . . 8 . . Terrain Destroyed 316 | . 4 86 29 35 93 61 . . . . 8 . . Melee 8 | . . . . . . . . . . . 8 . . Projectile 4 | . . . 3 . . 1 . . . . . . . AOE 304 | . 4 86 26 35 93 60 . . . . . . . Terrain Rammed . | . . . . . . . . . . . . . . Walls Destroyed . | . . . . . . . . . . . . . . Machines Disabled . | . . . . . . . . . . . . . . Actions | -11 -10 -10 -10 -8 -7 -6 -6 -6 -6 -5 -5 -5 -5 --------- Run | Yrd Mat Min Sub Mat Fac Fac Low Low Dat Pro Fac Upp Upp Total 6681 | 138 110 360 426 582 627 817 737 553 84 369 809 792 277 Wait 501 | 1 1 26 . 18 34 113 25 127 . 12 103 . 41 Move 5833 | 121 100 306 388 523 546 631 696 410 83 354 665 782 228 Hop . | . . . . . . . . . . . . . . Pick Up 57 | 1 1 5 2 5 16 12 4 3 . . 5 1 2 Fast Attach 46 | 7 . . 3 14 1 6 . 1 . 1 10 1 2 Attach 27 | . . 2 5 2 2 4 . 3 1 . 3 3 2 Detach 6 | . . . . 5 . . . . . . . 1 . Swap 31 | 1 1 1 . . 9 12 4 1 . . 2 . . Drop 31 | . . . . 3 3 14 8 1 . . 1 . 1 Fire 136 | 7 7 20 28 12 16 25 . 7 . . 11 2 1 Melee 10 | . . . . . . . . . . . 8 2 . Ram 2 | . . . . . . . . . . 2 . . . Kick 1 | . . . . . . . . . . . 1 . . Crush . | . . . . . . . . . . . . . . Escape Stasis . | . . . . . . . . . . . . . . Rewire . | . . . . . . . . . . . . . . Trap . | . . . . . . . . . . . . . . Miscellaneous . | . . . . . . . . . . . . . . Route ------- -11/Scrapyard -10/Materials (discovered 4 exits: Mat x3 / [*Min]) -10/Mines (discovered 2 exits: *Mat / [*Sub]) -10/Subcaves -8/Materials (discovered 2 exits: *Fac x2) -7/Factory (discovered 2 exits: [*Fac] / [*Low]) -6/Factory -6/Lower Caves -6/Lower Caves (discovered 2 exits: *Fac / *Dat) -6/Data Miner -5/Proximity Caves -5/Factory (discovered 3 exits: Fac / *Upp x2) -5/Upper Caves -5/Upper Caves (discovered 1 exit: *Fac) History --------- Turn | Location | Event 4 | -11/Scrapyard | Discovered new exit (range 15) 216 | -11/Scrapyard | Entered Materials 255 | -10/Materials | Identified exit to Materials 312 | -10/Materials | Build established: Mutant 361 | -10/Materials | Discovered new exit (range 7) 401 | -10/Materials | Entered Mines 401 | -10/Mines | Accompanied by 1 ally 402 | -10/Mines | Learned location of Storage (-9) 442 | -10/Mines | Learned 4 Materials zone layouts 478 | -10/Mines | Received a Rocket Launcher from a helpful Derelict 793 | -10/Mines | Assisted by bots powering up and referring to "LRC-V3" 882 | -10/Mines | Discovered exit to Materials (range 10) 950 | -10/Mines | Discovered new exit (range 7) 974 | -10/Mines | Entered Subcaves 974 | -10/Subcaves | Accompanied by 2 allies 1064 | -10/Subcaves | Lost 3 parts (1p2w) 1247 | -10/Subcaves | Learned location of Zion (-7) 1247 | -10/Subcaves | Met a Zionite searching for "candidates" 1321 | -10/Subcaves | Ambushed by Subdweller buried in earth 1340 | -10/Subcaves | Core integrity fell below 50% 1362 | -10/Subcaves | Lost 4 parts (1p2n1w) 1580 | -10/Subcaves | Core integrity fell below 20% 1581 | -10/Subcaves | Released all parts (3) 1607 | -10/Subcaves | Discovered new exit (range 15) 1612 | -10/Subcaves | Entered Materials 1612 | -8/Materials | Evolved 4 slots: Propulsion x2, Utility x2 1613 | -8/Materials | Identified exit to Factory 1651 | -8/Materials | Central database locked down 1980 | -8/Materials | Discovered exit to Factory (range 11) 2032 | -8/Materials | Entered Factory 2032 | -7/Factory | Evolved 2 slots: Utility x2 2389 | -7/Factory | Discovered new exit (range 8) 2821 | -7/Factory | Discovered new exit (range 9) 2850 | -7/Factory | Entered another Factory area 2850 | -6/Factory | Evolved 2 slots: Propulsion x1, Utility x1 3122 | -6/Factory | Garrison activated, responded to threat 3189 | -6/Factory | Lost 3 parts (1p2n) 3354 | -6/Factory | Discovered new exit (range 10) 3382 | -6/Factory | Identified exit to Lower Caves 3383 | -6/Factory | Entered Lower Caves 3640 | -6/Lower Caves | Found Prototype Device 3707 | -6/Lower Caves | Attracted the attention of an 0b10 checkpoint 3707 | -6/Lower Caves | Discovered new exit (range 15) 3712 | -6/Lower Caves | Identified exit to Lower Caves 3713 | -6/Lower Caves | Entered another Lower Caves area 3722 | -6/Lower Caves | Spotted B-75 Beast 3727 | -6/Lower Caves | Discovered new exit (range 12) 3732 | -6/Lower Caves | Identified exit to Factory 4007 | -6/Lower Caves | Lost 6 parts (1p3n1u1w) 4018 | -6/Lower Caves | Encountered a Warlord checkpoint 4026 | -6/Lower Caves | Learned Factory emergency access door positions 4037 | -6/Lower Caves | Ambushed by wild Derelicts 4060 | -6/Lower Caves | Discovered new exit (range 8) 4063 | -6/Lower Caves | Identified exit to Data Miner 4064 | -6/Lower Caves | Entered Data Miner 4064 | -6/Data Miner | Discovered new exit (range 6) 4074 | -6/Data Miner | Met Data Miner 4086 | -6/Data Miner | Learned location of Section 7 (-3) 4086 | -6/Data Miner | Acquired the access code to Warlord's prototype stash 4095 | -6/Data Miner | Received God Mode back door access code from Data Miner 4099 | -6/Data Miner | Identified Heart of Steel 4108 | -6/Data Miner | Identified exit to Proximity Caves 4109 | -6/Data Miner | Entered Proximity Caves 4208 | -5/Proximity Caves | Spotter reported a threat 4246 | -5/Proximity Caves | Spotter reported a threat 4272 | -5/Proximity Caves | Lost 4 parts (1p3n) 4285 | -5/Proximity Caves | Released all parts (5) 4288 | -5/Proximity Caves | Core integrity fell below 50% 4314 | -5/Proximity Caves | Attracted the attention of an 0b10 outpost 4320 | -5/Proximity Caves | Learned location of 2 exits from Factory 4324 | -5/Proximity Caves | Core integrity fell below 20% 4324 | -5/Proximity Caves | Discovered exit to Factory (range 5) 4326 | -5/Proximity Caves | Entered Factory 4326 | -5/Factory | Evolved 2 slots: Utility x2 4327 | -5/Factory | Identified exit to Factory 4327 | -5/Factory | Identified exit to Upper Caves 4626 | -5/Factory | Search patrols dispatched 5190 | -5/Factory | Discovered exit to Upper Caves (range 8) 5223 | -5/Factory | Entered Upper Caves 5238 | -5/Upper Caves | Lost 4 parts (2u2w) 5320 | -5/Upper Caves | Learned location of Armory (-3) 5690 | -5/Upper Caves | Attracted the attention of an 0b10 checkpoint 5766 | -5/Upper Caves | Core integrity fell below 50% 6125 | -5/Upper Caves | Discovered new exit (range 3) 6127 | -5/Upper Caves | Entered another Upper Caves area 6246 | -5/Upper Caves | Discovered exit to Factory (range 5) 6252 | -5/Upper Caves | Encountered a Warlord checkpoint 6574 | -5/Upper Caves | Released all parts (5) 6575 | -5/Upper Caves | Core integrity fell below 20% 6619 | -5/Upper Caves | Destroyed by H-66 Slayer with Gauss Rifle Last Messages --------------- 06525_ System corrupted: Energy discharge (-88). 06545_ Slug penetrates Wall. 06561_ Slug penetrates Abandoned Machinery. 06564_ Slug penetrates Wall. 06568_ Slug penetrates H-66 Slayer. 06568_ Penetrated by Slug. 06570_ Cloaking Device destroyed. 06571_ Penetrated by Slug. 06574_ Imp. Plasma Cutter destroyed. 06574_ Penetrated by Slug. 06574_ Released Mak. Salvage Targeting Computer. 06574_ Released Imp. Melee Analysis Suite. 06574_ Released Hacking Suite. 06574_ Released Neutrino Core. 06574_ Released Imp. Targeting Computer. 06577_ Penetrated by Slug. 06590_ Slug penetrates Wall. 06616_ Slug penetrates Earth. 06616_ Slug penetrates Wall. 06616_ Penetrated by Slug. Map ----- +----------------------------------------------------+ | ?????????????????????????????????????????????????? | | ??????????????????????????????????????#??????????? | | ?????????????????????????????????????? ??????????? | | ????????????????????????????????#???#? ??????????? | | ????????????????????????????? ? #?? ? ??????????? | | ?????????????????????????????? # #? ? ???????? | | ??????????????????????????????? # # ??###?? | | ???????????????????????????????# #? #? ? | | ???????????????????????????????# # # | | ??????????????????????????????## # # | | ??????????????????????????????# # # ? # | | ??????????????????????????????# # ?# # | | ??????????????????????????????# ## ## | | ???????????????????????????????# ## ??? | | ???????????????????????????????# # ##???? | | ???????????????????????##????????# # # ##??? | | ??????????????????????## #??###?## #??? | | ??????????????????????# ### ## ## # ##?? | | ??????????????????????# ## ##? | | ???????????????????????# # ## | | ???????????????????????# # ## ## # # | | ???????????????????????# # ?## #### | | ??????????????????????## ## #??# | | ??????????????????????# ## #??##### # | | ???????????????????????# # ##??????## ## | | ???????????????????????##@ # # ####????????# ## | | ????????????????????????# # ##???????##### | | ????????????????????????## #???###### * | | ?????????????????????????## ###### # | | ??????????????????????????# hh### | | ?????????????????????????## ### " " | | ?????????????????????????# ## ### " """ " # | | ?????????????????????????## ## #?# """""" # | | ??????????????????????????## # ### """ " | | ???????????????????????????## ## ## | | ????????????????????????????### # ## % | | ?????????????????????????????# # ### #### # ### | | ?????????????????????????????#### ######??# # #?? | | ????????????????????????????????# #??##### ###? | | ????????????????????????????????## #### ## #? | | ?????????????????????????????????# ## # ##? | | ?????????????????????????????????# #?? | | ?????????????????????????????????# # # ##?? | | ?????????????????????????????????# # ####??? | | ?????????????????????????????????#### #####?????? | | ????????????????????????????????????####?????????? | | ?????????????????????????????????????????????????? | | ?????????????????????????????????????????????????? | | ?????????????????????????????????????????????????? | | ?????????????????????????????????????????????????? | +----------------------------------------------------+ Best States ------------- Heat Dissipation 56 Energy Generation 19 Energy Capacity 315 Matter Stores 300 Matter Capacity 300 Sight Range 16 Robot Scan Range 15 Terrain Scan Range 16 Terrain Scan Density 10 Cloak Strength 2 Additional Mass Support 9 Armor Coverage 375 Resistance: TH 10 Propulsion Shielding 66 Utility Shielding 66 Weapon Cycling 15 Evasion (%) 66 Targeting Accuracy 6 Melee Accuracy 6 Recoil Reduction 2 Salvage Targeting 4 Offensive Hacking 10 Item Schematics ----------------- Combat Drone Bay | -6/Data Miner | Free Lgt. Regenerative Plating | -6/Data Miner | Free Enh. Armored Leg | -6/Data Miner | Free Adv. EM Disruption Field | -6/Data Miner | Free Hvy. Gatling Laser | -6/Data Miner | Free Imp. Linear Gravjet | -6/Data Miner | Free Imp. Cloaking Device | -6/Data Miner | Free Railgun | -6/Data Miner | Free Imp. Plasma Cutter | -6/Data Miner | Free Quantum Capacitor | -6/Data Miner | Free Matter Neutralizer | -6/Data Miner | Free Biometal Medium Treads | -6/Data Miner | Free Robot Schematics ------------------ L-41 Fighter | -6/Data Miner | Free H-66 Slayer | -6/Data Miner | Free M-22 Extractor | -6/Data Miner | Free L-61 Swordsman | -6/Data Miner | Free Fabricated ------------ Nothing Repaired ---------- Nothing Studied --------- Powered Hammer | -5/Factory | Hacked Coil Gun | -5/Factory | Hacked Alien Tech Used ----------------- None Achievements -------------- None Challenges ------------ None Game ------ Seed SniperProjectionNukerbomber Manual? 0 Play Time 01:37:04 Cumulative 163.7 hours Start 2026.03.17 @ 21:46:56 End 2026.03.22 @ 03:25:29 Sessions 11 Manual Loads 0 Difficulty Rogue Special Mode None Game No. 176 Rogue 176 Adventurer 0 Explorer 0 Win Type - Total 0 Types 0/0/0/0/0/0/0/0/0/0 Lore% 57 Gallery% 45 Achievement% 32 Wizard Run 0 Options --------- Layout 0 ASCII 0 Keyboard 0 Movement Arrows Keybinds 0 Fullscreen 1 Font 20/SmallcapsGlow Map View 66x50 Zoom Use 0% Tactical HUD 1 Map Filters NONE Filters NONE Steam 1 RUN: fe2146db-b628-40f6-b108-afd06c637b02